fUSD/lending_fUSD_20260425
["ID","MTS","AMOUNT","RATE_DAILY","PERIOD"]
[421130968,1777128638919,-151.0,0.00011044,2]
[421130970,1777128638930,-151.0,0.00011096,2]
[421130972,1777128638940,-151.0,0.00011096,2]
[421130974,1777128638950,-786.0,0.00011099,5]
[421130977,1777128638965,-56582.32259088,0.00011099,2]
[421130979,1777128638975,-56582.32259083,0.00011099,2]
[421130981,1777128638985,-56582.32259083,0.00011099,2]
[421130983,1777128638996,-56582.32259083,0.00011099,2]
[421130985,1777128639006,-56582.32259083,0.00011099,2]
[421130987,1777128639017,-56582.32259083,0.00011099,2]
[421130989,1777128639027,-56582.32259083,0.00011099,2]
[421130992,1777128639037,-56582.32259083,0.00011099,2]
[421130994,1777128639047,-151.0,0.00011099,2]
[421130996,1777128639057,-24313.59402479,0.00011157,2]
[421130998,1777128639068,-1155.01,0.0001124,2]
[421131000,1777128639078,-466.82,0.0001124,2]
[421131002,1777128639090,-277.52,0.0001124,2]
[421131004,1777128639101,-229.04,0.0001124,2]
[421131007,1777128639112,-3200.0,0.000113,4]
[421131009,1777128639122,-24313.59402479,0.00011343,2]
[421131011,1777128639132,-600.0,0.000114,4]
[421131013,1777128639142,-773.49116955,0.000114,2]
[421131015,1777128639152,-599.60298507,0.00011405,2]
[421131017,1777128639163,-695.39793187,0.00011405,2]
[421131019,1777128639173,-56582.32259083,0.0001148,2]
[421131021,1777128639183,-500.0,0.0001148,2]
[421131023,1777128639194,-500.0,0.0001148,2]
[421131025,1777128639204,-500.0,0.0001148,2]
[421131028,1777128639215,-500.0,0.0001148,2]
[421131030,1777128639225,-500.0,0.0001148,2]
[421131032,1777128639235,-500.0,0.0001148,2]
[421131034,1777128639246,-500.0,0.0001148,2]
[421131036,1777128639257,-500.0,0.0001148,2]
[421131038,1777128639267,-500.0,0.0001148,2]
[421131040,1777128639276,-500.0,0.0001148,2]
[421131042,1777128639286,-500.0,0.0001148,2]
[421131044,1777128639297,-500.0,0.0001148,2]
[421131046,1777128639307,-500.0,0.0001148,2]
[421131049,1777128639317,-500.0,0.0001148,2]
[421131051,1777128639327,-500.0,0.0001148,2]
[421131053,1777128639337,-500.0,0.0001148,2]
[421131055,1777128639347,-500.0,0.0001148,2]
[421131057,1777128639361,-500.0,0.0001148,2]
[421131059,1777128639371,-500.0,0.0001148,2]
[421131062,1777128639381,-500.0,0.0001148,2]
[421131064,1777128639392,-500.0,0.0001148,2]
[421131066,1777128639401,-500.0,0.0001148,2]
[421131068,1777128639412,-500.0,0.0001148,2]
[421131070,1777128639421,-500.0,0.0001148,2]
[421131072,1777128639432,-500.0,0.0001148,2]
[421131074,1777128639443,-500.0,0.0001148,2]
[421131077,1777128639459,-500.0,0.0001148,2]
[421131079,1777128639469,-500.0,0.0001148,2]
[421131081,1777128639480,-500.0,0.0001148,2]
[421131083,1777128639490,-500.0,0.0001148,2]
[421131085,1777128639502,-500.0,0.0001148,2]
[421131087,1777128639513,-500.0,0.0001148,2]
[421131089,1777128639524,-500.0,0.0001148,2]
[421131091,1777128639534,-500.0,0.0001148,2]
[421131094,1777128639547,-500.0,0.0001148,2]
[421131096,1777128639557,-500.0,0.0001148,2]
[421131098,1777128639567,-500.0,0.0001148,2]
[421131100,1777128639577,-500.0,0.0001148,2]
[421131102,1777128639587,-500.0,0.0001148,2]
[421131104,1777128639599,-500.0,0.0001148,2]
[421131106,1777128639609,-500.0,0.0001148,2]
[421131108,1777128639619,-500.0,0.0001148,2]
[421131112,1777128639629,-500.0,0.0001148,2]
[421131115,1777128639641,-500.0,0.0001148,2]
[421131117,1777128639651,-500.0,0.0001148,2]
[421131119,1777128639661,-500.0,0.0001148,2]
[421131121,1777128639671,-500.0,0.0001148,2]
[421131123,1777128639682,-500.0,0.0001148,2]
[421131125,1777128639692,-500.0,0.0001148,2]
[421131127,1777128639702,-500.0,0.0001148,2]
[421131129,1777128639713,-500.0,0.0001148,2]
[421131132,1777128639723,-500.0,0.0001148,2]
[421131134,1777128639733,-500.0,0.0001148,2]
[421131136,1777128639743,-500.0,0.0001148,2]
[421131138,1777128639753,-500.0,0.0001148,2]
[421131140,1777128639766,-500.0,0.0001148,2]
[421131142,1777128639776,-500.0,0.0001148,2]
[421131144,1777128639786,-500.0,0.0001148,2]
[421131146,1777128639796,-500.0,0.0001148,2]
[421131148,1777128639806,-500.0,0.0001148,2]
[421131151,1777128639818,-500.0,0.0001148,2]
[421131153,1777128639828,-500.0,0.0001148,2]
[421131155,1777128639838,-500.0,0.0001148,2]
[421131157,1777128639848,-500.0,0.0001148,2]
[421131159,1777128639857,-500.0,0.0001148,2]
[421131161,1777128639867,-500.0,0.0001148,2]
[421131163,1777128639878,-500.0,0.0001148,2]
[421131166,1777128639889,-500.0,0.0001148,2]
[421131168,1777128639899,-500.0,0.0001148,2]
[421131170,1777128639909,-500.0,0.0001148,2]
[421131172,1777128639919,-500.0,0.0001148,2]
[421131174,1777128639929,-500.0,0.0001148,2]
[421131176,1777128639939,-843.0,0.0001148,2]
[421131178,1777128639950,-863.0,0.0001148,2]
[421131180,1777128639960,-20032.29135421,0.000115,2]
[421131182,1777128639970,-2439.17,0.000115,2]
[421131185,1777128639981,-600.0,0.000115,4]
[421131187,1777128639990,-24313.59402479,0.00011529,2]
[421131189,1777128640000,-498.65571072,0.00011541,2]
[421131191,1777128640010,-600.0,0.000116,4]
[421131193,1777128640020,-600.0,0.000117,4]
[421131195,1777128640030,-24313.59402479,0.00011714,2]
[421131197,1777128640041,-600.0,0.00011726,2]
[421131199,1777128640051,-500.0,0.00011726,2]
[421131201,1777128640061,-6282.42469213,0.0001176,2]
[421131203,1777128640071,-182.804676,0.0001176,2]
[421131205,1777128640080,-451.561435,0.0001176,2]
[421131207,1777128640090,-155.0,0.00011769,2]
[421131210,1777128640100,-1035.0,0.000118,4]
[421131212,1777128640110,-151.0,0.00011859,2]
[421131214,1777128640120,-151.0,0.00011859,2]
[421131216,1777128640131,-151.0,0.00011859,2]
[421131218,1777128640141,-151.0,0.00011859,2]
[421131220,1777128640151,-151.0,0.00011859,2]
[421131222,1777128640161,-151.0,0.00011859,2]
[421131224,1777128640171,-151.0,0.00011859,2]
[421131226,1777128640181,-151.0,0.00011859,2]
[421131228,1777128640191,-151.0,0.00011859,2]
[421131230,1777128640200,-151.0,0.00011859,2]
[421131232,1777128640211,-151.0,0.00011859,2]
[421131235,1777128640222,-151.0,0.00011865,2]
[421131237,1777128640232,-151.0,0.00011866,2]
[421131239,1777128640242,-151.0,0.00011866,2]
[421131241,1777128640252,-151.0,0.00011866,2]
[421131243,1777128640261,-151.0,0.00011879,2]
[421131245,1777128640271,-151.0,0.00011879,2]
[421131247,1777128640281,-463.0,0.00011894,2]
[421131248,1777128640292,-1700.92949884,0.000119,3]
[421131249,1777128640302,-56582.32259083,0.000119,2]
[421131252,1777128640315,-24313.59402479,0.000119,2]
[421131254,1777128640325,-681.84402556,0.000119,2]
[421131256,1777128640335,-681.84402555,0.000119,2]
[421131258,1777128640345,-681.84402555,0.000119,2]
[421131260,1777128640357,-157.0,0.00011954,3]
[421131262,1777128640366,-1891.25,0.00011988,2]
[421131264,1777128640376,-758.05,0.00011988,2]
[421131267,1777128640387,-445.94,0.00011988,2]
[421131269,1777128640397,-308.01,0.00011988,2]
[421131271,1777128640407,-283.97,0.00011988,2]
[421131273,1777128640417,-410.15,0.00011988,2]
[421131275,1777128640427,-1446.66,0.00011988,2]
[421131277,1777128640437,-396.51,0.00011988,2]
[421131279,1777128640447,-262.12,0.00011988,2]
[421131281,1777128640457,-235737.99644865,0.00012,2]
[421131284,1777128640474,-277.047,0.00012,2]
[421131287,1777128640492,-2438.15312271,0.00012,2]
[421131343,1777128641203,-387.965,0.00012,2]
[421131348,1777128641242,-24104.6103854,0.00012,2]
[421131510,1777128642713,-158.0,0.0001147,2]
[421131512,1777128642723,-773.49116954,0.0001165,2]
[421131514,1777128642733,-4188.28312808,0.0001176,2]
[421131516,1777128642743,-681.84402555,0.000119,2]
[421131518,1777128642753,-102965.24484344,0.00012,2]
[421131770,1777129000692,-1200.0,8.024e-05,2]
[421131771,1777129000752,-300.0,8.024e-05,2]
[421131772,1777129000810,-150.0,8.025e-05,2]
[421131773,1777129000862,-500.0,8.025e-05,2]
[421131774,1777129000912,-500.0,8.025e-05,2]
[421131775,1777129000961,-500.0,8.025e-05,2]
[421131776,1777129001011,-541.34847136,8.025e-05,2]
[421131777,1777129001071,-500.0,8.025e-05,2]
[421131778,1777129001130,-500.0,8.025e-05,2]
[421131779,1777129001182,-117.31305728,8.025e-05,2]
[421131780,1777129002037,-382.68694272,8.025e-05,2]
[421131781,1777129002073,-500.0,8.025e-05,2]
[421131782,1777129002107,-500.0,8.025e-05,2]
[421131783,1777129002141,-500.0,8.025e-05,2]
[421131784,1777129002175,-175.0,8.025e-05,2]
[421131785,1777129002209,-500.0,8.025e-05,2]
[421131786,1777129002243,-500.0,8.025e-05,2]
[421131787,1777129002278,-500.0,8.025e-05,2]
[421131788,1777129002311,-500.0,8.025e-05,2]
[421131789,1777129002342,-369.14373963,8.025e-05,2]
[421131790,1777129002377,-250.0,8.025e-05,2]
[421131791,1777129002406,-146.3486353,8.025e-05,2]
[421131792,1777129002476,-353.6513647,8.025e-05,2]
[421131793,1777129002506,-490.12479523,8.025e-05,2]
[421131794,1777129002535,-500.0,8.025e-05,2]
[421131795,1777129002569,-500.0,8.025e-05,2]
[421131796,1777129002604,-500.0,8.025e-05,2]
[421131797,1777129002637,-500.0,8.025e-05,2]
[421131798,1777129002672,-500.0,8.025e-05,2]
[421131799,1777129002706,-500.0,8.025e-05,2]
[421131800,1777129002740,-500.0,8.025e-05,2]
[421131801,1777129002774,-500.0,8.025e-05,2]
[421131802,1777129002810,-12.45768014,8.025e-05,2]
[421131803,1777129002989,-287.54231986,8.025e-05,2]
[421131804,1777129003025,-500.0,8.025e-05,2]
[421131805,1777129003661,-192.48915256,8.026e-05,2]
[421131806,1777129003697,-287.54231986,8.026e-05,2]
[421131807,1777129003711,-500.0,8.026e-05,2]
[421131808,1777129003730,-8424.92536028,8.026e-05,2]
[421131809,1777129004134,-10000.01,8.026e-05,2]
[421131810,1777129004153,-10000.01,8.026e-05,2]
[421131811,1777129006452,-10000.01,8.026e-05,2]
[421131812,1777129009813,-4885.4122713,8.026e-05,2]
[421131813,1777129013518,-1692706.731896,8.026e-05,2]
[421131814,1777129016706,1700.0,7.8e-05,2]
[421131815,1777129018799,3300.01,7.9e-05,2]
[421131816,1777129018827,99.99,7.9e-05,2]
[421131817,1777129021341,5100.0,8e-05,2]
[421131818,1777129025666,157.0,7.8e-05,3]
[421131819,1777129035303,4158.2834,7.926e-05,2]
[421131820,1777129041050,500.0,8.025e-05,2]
[421131821,1777129041095,184.7266,8.025e-05,2]
[421131822,1777129041125,57.64581551,8.025e-05,2]
[421131823,1777129041652,6254.7975,7.926e-05,2]
[421131824,1777129066811,602.37241551,8.025e-05,2]
[421131825,1777129066852,500.0,8.025e-05,2]
[421131826,1777129066890,500.0,8.025e-05,2]
[421131827,1777129066937,500.0,8.025e-05,2]
[421131828,1777129066989,500.0,8.025e-05,2]
[421131829,1777129067026,500.0,8.025e-05,2]
[421131830,1777129067065,500.0,8.025e-05,2]
[421131831,1777129067106,500.0,8.025e-05,2]
[421131832,1777129067146,500.0,8.025e-05,2]
[421131833,1777129067189,397.63758449,8.025e-05,2]
[421131834,1777129067219,102.36241551,8.025e-05,2]
[421131835,1777129067257,500.0,8.025e-05,2]
[421131836,1777129067293,500.0,8.025e-05,2]
[421131837,1777129067328,500.0,8.025e-05,2]
[421131838,1777129067363,500.0,8.025e-05,2]
[421131839,1777129067404,500.0,8.025e-05,2]
[421131840,1777129067439,417.84684016,8.025e-05,2]
[421131841,1777129067475,500.0,8.025e-05,2]
[421131842,1777129067513,500.0,8.025e-05,2]
[421131843,1777129067549,500.0,8.025e-05,2]
[421131844,1777129067585,500.0,8.025e-05,2]
[421131845,1777129067628,500.0,8.025e-05,2]
[421131846,1777129067665,500.0,8.025e-05,2]
[421131847,1777129067715,500.0,8.025e-05,2]
[421131848,1777129067756,500.0,8.025e-05,2]
[421131849,1777129067794,500.0,8.025e-05,2]
[421131850,1777129067831,500.0,8.025e-05,2]
[421131851,1777129067868,500.0,8.025e-05,2]
[421131852,1777129067904,500.0,8.025e-05,2]
[421131853,1777129067941,500.0,8.025e-05,2]
[421131854,1777129067988,500.0,8.025e-05,2]
[421131855,1777129068029,500.0,8.025e-05,2]
[421131856,1777129077749,500.0,8.025e-05,2]
[421131857,1777129077796,500.0,8.025e-05,2]
[421131858,1777129079235,4000.01,1.31e-05,3]
[421131859,1777129079257,37533.37353904,1.31e-05,3]
[421131860,1777129079287,49132.04968628,1.31e-05,3]
[421131861,1777129079321,537401.65547131,1.31e-05,3]
[421131862,1777129104019,157.0,1.31e-05,3]
[421131863,1777129145895,157.0,1.31e-05,3]
[421131864,1777129152907,500.0,7.926e-05,2]
[421131865,1777129176092,4186.01,7.926e-05,2]
[421131866,1777129180486,-216.62626128,7.926e-05,2]
[421131867,1777129181908,-180.69662149,7.926e-05,2]
[421131868,1777129183858,-427.974,7.926e-05,2]
[421131869,1777129185296,-384.50497851,7.926e-05,2]
[421131870,1777129188884,-200.0,7.926e-05,2]
[421131871,1777129191707,-500.0,7.926e-05,2]
[421131872,1777129192822,-380.42207151,7.926e-05,2]
[421131873,1777129194861,-500.00025668,7.926e-05,2]
[421131874,1777129197571,-500.0,7.926e-05,2]
[421131875,1777129199598,-376.58147657,7.926e-05,2]
[421131877,1777129203403,-300.0,7.925e-05,2]
[421131878,1777129203437,-1200.0,7.925e-05,2]
[421131879,1777129203471,-300.0,7.925e-05,2]
[421131880,1777129203670,-1400.01,7.926e-05,2]
[421131881,1777129206320,-5000.01,7.926e-05,2]
[421131882,1777129207715,5771.0,6.592e-05,2]
[421131883,1777129209236,-5000.01,7.926e-05,2]
[421131884,1777129212219,-157.0,7.926e-05,3]
[421131885,1777129212269,-4686.01,7.926e-05,2]
[421131886,1777129215258,-5000.01,7.926e-05,2]
[421131887,1777129218311,-5000.01,7.926e-05,2]
[421131888,1777129221386,-5000.01,7.926e-05,2]
[421131889,1777129225975,-5000.01,7.926e-05,2]
[421131890,1777129227440,-5000.01,7.926e-05,2]
[421131891,1777129230382,-5000.01,7.926e-05,2]
[421131892,1777129233453,-5000.01,7.926e-05,2]
[421131893,1777129237436,-2397.60066604,7.926e-05,2]
[421131894,1777129237608,-204.80866792,7.926e-05,2]
[421131895,1777129239426,-376.581476,7.945e-05,2]
[421131896,1777129239459,-150.0,7.994e-05,2]
[421131897,1777129239522,-3946.847048,7.995e-05,2]
[421131898,1777129242488,-5000.01,7.995e-05,2]
[421131899,1777129245535,-1053.142952,7.995e-05,2]
[421131900,1777129268893,2180.8311,7.926e-05,2]
[421131901,1777129275737,-250.0,8.172e-05,2]
[421131902,1777129321209,300.0,8.341e-05,2]
[421131903,1777129336230,-500.0,8.342e-05,2]
[421131904,1777129336261,-500.0,8.342e-05,2]
[421131905,1777129336292,-500.0,8.342e-05,2]
[421131906,1777129336324,-520.34757162,8.342e-05,2]
[421131907,1777129336354,-250.0,8.342e-05,2]
[421131908,1777129392540,-500.0,8.56e-05,2]
[421131909,1777129392574,-250.0,8.56e-05,2]
[421131910,1777129409046,-300.0,8.566e-05,2]
[421131911,1777129458470,4972.639356,8.178e-05,2]
[421131912,1777129473375,-500.0,8.579e-05,2]
[421131913,1777129473406,-500.0,8.579e-05,2]
[421131914,1777129502558,150.0,7.718e-05,2]
[421131915,1777129502610,150.0,7.889e-05,2]
[421131916,1777129502686,150.0,8.061e-05,2]
[421131917,1777129502767,150.0,8.232e-05,2]
[421131918,1777129502834,150.0,8.404e-05,2]
[421131919,1777129502896,241.96,8.575e-05,2]
[421131920,1777129504598,-300.0,8.579e-05,2]
[421131921,1777129507395,150.0,7.718e-05,2]
[421131922,1777129507502,150.0,8.147e-05,2]
[421131923,1777129507546,150.0,8.575e-05,2]
[421131924,1777129507591,150.0,7.718e-05,2]
[421131925,1777129507631,150.0,7.889e-05,2]
[421131926,1777129507671,150.0,8.061e-05,2]
[421131927,1777129507744,150.0,8.232e-05,2]
[421131928,1777129507827,150.0,8.404e-05,2]
[421131929,1777129507891,150.0,8.575e-05,2]
[421131930,1777129512506,150.0,7.718e-05,2]
[421131931,1777129512572,150.0,7.932e-05,2]
[421131932,1777129512637,150.0,8.147e-05,2]
[421131933,1777129512706,150.0,8.361e-05,2]
[421131934,1777129512794,150.00000001,8.575e-05,2]
[421131935,1777129515695,-254.39,8.579e-05,2]
[421131936,1777129526270,150.0,7.718e-05,2]
[421131937,1777129526317,150.0,8.575e-05,2]
[421131938,1777129592097,-300.0,8.594e-05,2]
[421131939,1777129592127,-300.0,8.594e-05,2]
[421131940,1777129592165,-1200.0,8.599e-05,2]
[421131941,1777129592197,-150.0,8.599e-05,2]
[421131942,1777129592227,-287.0,8.599e-05,2]
[421131943,1777129594949,500.0,8.599e-05,2]
[421131944,1777129603581,-500.0,8.599e-05,2]
[421131945,1777129603612,-500.0,8.599e-05,2]
[421131946,1777129603642,-500.0,8.599e-05,2]
[421131947,1777129603672,-500.0,8.599e-05,2]
[421131948,1777129603701,-237.05029549,8.599e-05,2]
[421131949,1777129603735,-25.90940902,8.599e-05,2]
[421131950,1777129609487,-474.09059098,8.599e-05,2]
[421131951,1777129609525,-500.0,8.599e-05,2]
[421131952,1777129609561,-500.0,8.599e-05,2]
[421131953,1777129609596,-500.0,8.599e-05,2]
[421131954,1777129609631,-500.0,8.599e-05,2]
[421131955,1777129613223,5026.01,8.03e-05,2]
[421131956,1777129613248,10000.01,8.03e-05,2]
[421131957,1777129613273,10000.01,8.03e-05,2]
[421131958,1777129613298,10000.01,8.03e-05,2]
[421131959,1777129613472,-3164.78852255,8.03e-05,2]
[421131960,1777129622876,-257.579544,8.03e-05,2]
[421131961,1777129624730,-10000.01,8.03e-05,2]
[421131962,1777129624745,-10000.01,8.03e-05,2]
[421131963,1777129624760,-10000.01,8.03e-05,2]
[421131964,1777129624778,-10000.01,8.03e-05,2]
[421131965,1777129624804,-10000.01,8.03e-05,2]
[421131966,1777129624830,-10000.01,8.03e-05,2]
[421131967,1777129624848,-10000.01,8.03e-05,2]
[421131968,1777129625156,-5000.01,8.03e-05,2]
[421131969,1777129625806,-10000.01,8.03e-05,2]
[421131970,1777129626007,-10000.01,8.03e-05,2]
[421131971,1777129626115,-10000.01,8.03e-05,2]
[421131972,1777129626254,-10000.01,8.03e-05,2]
[421131973,1777129626355,-10000.01,8.03e-05,2]
[421131974,1777129626454,-10000.01,8.03e-05,2]
[421131975,1777129626580,-10000.01,8.03e-05,2]
[421131976,1777129626686,-10000.01,8.03e-05,2]
[421131977,1777129626791,-10000.01,8.03e-05,2]
[421131978,1777129626914,-10000.01,8.03e-05,2]
[421131979,1777129627086,-10000.01,8.03e-05,2]
[421131980,1777129627165,-10000.01,8.03e-05,2]
[421131981,1777129627730,-10000.01,8.03e-05,2]
[421131982,1777129627754,-10000.01,8.03e-05,2]
[421131983,1777129627786,-10000.01,8.03e-05,2]
[421131984,1777129628768,-10000.01,8.03e-05,2]
[421131985,1777129628868,-10000.01,8.03e-05,2]
[421131986,1777129628976,-10000.01,8.03e-05,2]
[421131987,1777129629089,-10000.01,8.03e-05,2]
[421131988,1777129629197,-10000.01,8.03e-05,2]
[421131989,1777129629301,-10000.01,8.03e-05,2]
[421131990,1777129629672,-10000.01,8.03e-05,2]
[421131991,1777129629811,-10000.01,8.03e-05,2]
[421131992,1777129629885,-10000.01,8.03e-05,2]
[421131993,1777129629982,-10000.01,8.03e-05,2]
[421131994,1777129630130,-3570.36056495,8.03e-05,2]
[421131995,1777129630157,-2859.2888701,8.03e-05,2]
[421131996,1777129675550,-300.0,8.315e-05,2]
[421131997,1777129690608,-300.0,8.431e-05,2]
[421131998,1777129691503,155.0,8.315e-05,3]
[421131999,1777129696269,154.0,8.315e-05,3]
[421132000,1777129705769,-5000.0,8.432e-05,2]
[421132001,1777129705887,-5000.0,8.432e-05,2]
[421132006,1777129831958,-169.0,8.432e-05,3]
[421132007,1777129831969,-155.0,8.432e-05,3]
[421132008,1777129831979,-155.0,8.432e-05,3]
[421132009,1777129831989,-250.0,8.466e-05,2]
[421132010,1777129831999,-76.848,8.499e-05,2]
[421132011,1777129832011,-73.152,8.499e-05,2]
[421132012,1777129832021,-473.74646427,8.499e-05,2]
[421132013,1777129832038,-367.5852002,8.499e-05,2]
[421132014,1777129832050,-358.66833553,8.499e-05,2]
[421132015,1777129832060,-4158.2834,8.5e-05,2]
[421132016,1777129832070,-33777.84212477,8.5e-05,2]
[421132017,1777129832347,-7715.03427523,8.5e-05,2]
[421132018,1777129832358,-1091.05484896,8.5e-05,2]
[421132019,1777129832367,-1091.05484896,8.55e-05,2]
[421132020,1777129832377,-500.0,8.599e-05,2]
[421132021,1777129832387,-250.0,8.599e-05,2]
[421132022,1777129832397,-500.0,8.599e-05,2]
[421132023,1777129832407,-500.0,8.599e-05,2]
[421132024,1777129832417,-500.0,8.599e-05,2]
[421132025,1777129832427,-500.0,8.599e-05,2]
[421132026,1777129832437,-500.0,8.599e-05,2]
[421132027,1777129832447,-500.0,8.599e-05,2]
[421132028,1777129832456,-500.0,8.599e-05,2]
[421132029,1777129832467,-500.0,8.599e-05,2]
[421132030,1777129832476,-500.0,8.599e-05,2]
[421132031,1777129832487,-500.0,8.599e-05,2]
[421132032,1777129832496,-500.0,8.599e-05,2]
[421132033,1777129832506,-500.0,8.599e-05,2]
[421132034,1777129832515,-500.0,8.599e-05,2]
[421132035,1777129832525,-500.0,8.599e-05,2]
[421132036,1777129832535,-500.0,8.599e-05,2]
[421132037,1777129832544,-500.0,8.599e-05,2]
[421132038,1777129832554,-500.0,8.599e-05,2]
[421132039,1777129832563,-500.0,8.599e-05,2]
[421132040,1777129832573,-500.0,8.599e-05,2]
[421132041,1777129832583,-500.0,8.599e-05,2]
[421132042,1777129832592,-500.0,8.599e-05,2]
[421132043,1777129832602,-500.0,8.599e-05,2]
[421132044,1777129832612,-500.0,8.599e-05,2]
[421132045,1777129832622,-500.0,8.599e-05,2]
[421132046,1777129832632,-500.0,8.599e-05,2]
[421132047,1777129832642,-500.0,8.599e-05,2]
[421132048,1777129832652,-500.0,8.599e-05,2]
[421132049,1777129832676,-500.0,8.599e-05,2]
[421132050,1777129832688,-500.0,8.599e-05,2]
[421132051,1777129832698,-500.0,8.599e-05,2]
[421132052,1777129832708,-395.39661841,8.599e-05,2]
[421132053,1777129832718,-500.0,8.599e-05,2]
[421132054,1777129832728,-500.0,8.599e-05,2]
[421132055,1777129832739,-500.0,8.599e-05,2]
[421132056,1777129832749,-500.0,8.599e-05,2]
[421132057,1777129832760,-500.0,8.599e-05,2]
[421132058,1777129832770,-500.0,8.599e-05,2]
[421132059,1777129832780,-500.0,8.599e-05,2]
[421132060,1777129832791,-500.0,8.599e-05,2]
[421132061,1777129832801,-500.0,8.599e-05,2]
[421132062,1777129832812,-500.0,8.599e-05,2]
[421132063,1777129832823,-500.0,8.599e-05,2]
[421132064,1777129832833,-500.0,8.599e-05,2]
[421132065,1777129832844,-500.0,8.599e-05,2]
[421132066,1777129832855,-500.0,8.599e-05,2]
[421132067,1777129832866,-500.0,8.599e-05,2]
[421132068,1777129832877,-500.0,8.599e-05,2]
[421132069,1777129832887,-500.0,8.599e-05,2]
[421132070,1777129832898,-500.0,8.599e-05,2]
[421132071,1777129832908,-500.0,8.599e-05,2]
[421132072,1777129832919,-500.0,8.599e-05,2]
[421132073,1777129832929,-500.0,8.599e-05,2]
[421132074,1777129832939,-500.0,8.599e-05,2]
[421132075,1777129832949,-500.0,8.599e-05,2]
[421132076,1777129832959,-401.63899453,8.599e-05,2]
[421132077,1777129832969,-500.0,8.599e-05,2]
[421132078,1777129832980,-500.0,8.599e-05,2]
[421132079,1777129832990,-500.0,8.599e-05,2]
[421132080,1777129833000,-500.0,8.599e-05,2]
[421132081,1777129833010,-500.0,8.599e-05,2]
[421132082,1777129833020,-500.0,8.599e-05,2]
[421132083,1777129833030,-500.0,8.599e-05,2]
[421132084,1777129833041,-500.0,8.599e-05,2]
[421132085,1777129833057,-500.0,8.599e-05,2]
[421132086,1777129833068,-500.0,8.599e-05,2]
[421132087,1777129833078,-500.0,8.599e-05,2]
[421132088,1777129833089,-500.0,8.599e-05,2]
[421132089,1777129833099,-500.0,8.599e-05,2]
[421132090,1777129833109,-500.0,8.599e-05,2]
[421132091,1777129833120,-500.0,8.599e-05,2]
[421132092,1777129833130,-500.0,8.599e-05,2]
[421132093,1777129833141,-500.0,8.599e-05,2]
[421132094,1777129833152,-500.0,8.599e-05,2]
[421132095,1777129833162,-500.0,8.599e-05,2]
[421132096,1777129833173,-500.0,8.599e-05,2]
[421132097,1777129833183,-500.0,8.599e-05,2]
[421132098,1777129833194,-500.0,8.599e-05,2]
[421132099,1777129833204,-500.0,8.599e-05,2]
[421132100,1777129833215,-550.0,8.599e-05,2]
[421132101,1777129833225,-500.0,8.599e-05,2]
[421132102,1777129833235,-500.0,8.599e-05,2]
[421132103,1777129833246,-500.0,8.599e-05,2]
[421132104,1777129833256,-416.0537839,8.599e-05,2]
[421132105,1777129833267,-500.0,8.599e-05,2]
[421132106,1777129833278,-500.0,8.599e-05,2]
[421132107,1777129833288,-500.0,8.599e-05,2]
[421132108,1777129833299,-500.0,8.599e-05,2]
[421132109,1777129833309,-500.0,8.599e-05,2]
[421132110,1777129833320,-500.0,8.599e-05,2]
[421132111,1777129833331,-500.0,8.599e-05,2]
[421132112,1777129833341,-500.0,8.599e-05,2]
[421132113,1777129833353,-272.75135353,8.599e-05,2]
[421132114,1777129833364,-500.0,8.599e-05,2]
[421132115,1777129833374,-643.86031298,8.599e-05,2]
[421132116,1777129833385,-500.0,8.599e-05,2]